{"text_format":"1","workbook":"xlsx","n_sheets":1,"sheets":["scheda"],"not_rendered":{"charts":0,"images":0,"macros":0,"external_links":0,"defined_names":1,"comments":0,"pivot_tables":0},"unopened":[],"bounds":{"document_bytes":16777216,"sheet_cells":100000,"rows_first":2000,"rows_last":500,"rows_between":2000,"halvings":0,"cell_chars":16384,"cell_head_chars":4096},"cells_cut":0,"cells_raw":0,"read":"whole","date_system":"1900"}

{"sheet":"scheda","index":0,"n_rows":24,"n_cols":13,"rows_kept":24,"cut":false,"hidden":false,"merged":[]}
[null,"CATEGORIA C "]
[null,"(ex VI q.f.)"]
["AREE DI VALUTAZIONE","FATTORI DI VALUTAZIONE",null,"PESO %",null,"                     VALUTAZIONE",null,null,null,null,null,null,"somma pesata"]
[null,null,null,null,null,3,6,9,12,15,18]
["AREA SPECIALISTICA","competenze tecnico/pratiche",null,null,null,null,null,null,null,null,null,{"$f":"IF(SUM(F5:K5)<=K4,\"\",\"ERRORE\")","v":""},{"$f":"((SUM(F5:K5))*D5)","v":0}]
[0.25,"conoscenze professionali",null,null,null,null,null,null,null,null,null,{"$f":"IF(SUM(F6:K6)<=K4,\"\",\"ERRORE\")","v":""},0]
[null,"autonomia",null,null,null,null,null,null,null,null,null,{"$f":"IF(SUM(F7:K7)<=K4,\"\",\"ERRORE\")","v":""},0]
[null,null,null,null,null,null,null,null,null,null,null,{"$f":"IF(SUM(F8:K8)<=K4,\"\",\"ERRORE\")","v":""},0]
[null,null,null,null,null,null,null,null,null,null,null,{"$f":"IF(SUM(F9:K9)<=K4,\"\",\"ERRORE\")","v":""},0]
[null,null,null,null,null,null,null,null,null,null,null,{"$f":"IF(SUM(F10:K10)<=K4,\"\",\"ERRORE\")","v":""},0]
["AREA ISTITUZIONALE ","comportamento sul lavoro",null,null,null,null,null,null,null,null,null,null,0]
["ORGANIZZATIVA ","affidabilità",null,null,null,null,null,null,null,null,null,{"$f":"IF(SUM(F12:K12)<=K4,\"\",\"ERRORE\")","v":""},0]
["GESTIONALE","orientamento al risultato",null,null,null,null,null,null,null,null,null,{"$f":"IF(SUM(F13:K13)<=K4,\"\",\"ERRORE\")","v":""},0]
[0.45,"definizione priorità di intervento",null,null,null,null,null,null,null,null,null,{"$f":"IF(SUM(F14:K14)<=K4,\"\",\"ERRORE\")","v":""},0]
[null,"capacità decisionali",null,null,null,null,null,null,null,null,null,{"$f":"IF(SUM(F15:K15)<=K4,\"\",\"ERRORE\")","v":""},0]
[null,null,null,null,null,null,null,null,null,null,null,{"$f":"IF(SUM(F16:K16)<=K4,\"\",\"ERRORE\")","v":""},0]
["AREA RELAZIONALE","collaborazione",null,null,null,null,null,null,null,null,null,{"$f":"IF(SUM(F17:K17)<=K4,\"\",\"ERRORE\")","v":""},0]
[0.3,"orientamento all'utenza",null,null,null,null,null,null,null,null,null,{"$f":"IF(SUM(F18:K18)<=K4,\"\",\"ERRORE\")","v":""},0]
[null,null,null,null,null,null,null,null,null,null,null,{"$f":"IF(SUM(F19:K19)<=K4,\"\",\"ERRORE\")","v":""},0]
[null,null,null,null,null,null,null,null,null,null,null,{"$f":"IF(SUM(F20:K20)<=K4,\"\",\"ERRORE\")","v":""},0]
[null,null,null,null,null,null,null,null,null,null,null,{"$f":"IF(SUM(F21:K21)<=K4,\"\",\"ERRORE\")","v":""},0]
[null,null,null,null,null,null,null,null,null,null,null,{"$f":"IF(SUM(F22:K22)<=K4,\"\",\"ERRORE\")","v":""},0]
[]
[null,"TOTALE",null,{"$f":"SUM(D5:D23)","v":0},null,{"$f":"SUM(F5:F23)","v":0},0,0,0,0,0,{"$f":"SUM(F24:K24)","v":0},{"$f":"SUM(M5:M22)","v":0}]